[Event "European Rapid Championship 2021"]
[Site "Katowice"]
[Date "2021.12.18"]
[Round "3.20"]
[White "Dragnev, Valentin"]
[Black "Mica, Marek"]
[Result "1-0"]
[ECO "B10"]
[WhiteElo "2409"]
[BlackElo "2060"]
[Annotator "ChessBase"]
[PlyCount "109"]
[EventDate "2021.12.18"]
[EventType "swiss"]
[EventCountry "POL"]
[SourceTitle "playchess.com"]
[Source "ChessBase"]
[SourceQuality "1"]
[TimeControl "900+10"]

1. e4 {[%emt 0:00:02]} c6 {[%emt 0:00:02]} 2. Nc3 {[%emt 0:00:02]} d5 {[%emt 0:
00:01]} 3. Nf3 {[%emt 0:00:01]} dxe4 {[%emt 0:00:02]} 4. Nxe4 {[%emt 0:00:03]}
Nf6 {[%emt 0:00:01]} 5. Qe2 {[%emt 0:00:01]} Nxe4 {[%emt 0:00:02]} 6. Qxe4 {
[%emt 0:00:02]} Nd7 {[%emt 0:00:01]} 7. d4 {[%emt 0:00:04]} Nf6 {[%emt 0:00:04]
} 8. Qd3 {[%emt 0:00:02]} g6 {[%emt 0:00:18]} 9. Be2 {[%emt 0:00:05]} Bg7 {
[%emt 0:00:05]} 10. O-O {[%emt 0:00:03]} O-O {[%emt 0:00:06]} 11. Re1 {[%emt 0:
00:06]} Bf5 {[%emt 0:00:37]} 12. Qb3 {[%emt 0:00:02]} Qb6 {[%emt 0:00:19]} 13.
c3 {[%emt 0:00:03]} Qc7 {[%emt 0:03:52]} 14. Ne5 {[%emt 0:01:30]} Nd7 {[%emt 0:
01:23]} 15. Nxd7 {[%emt 0:03:30]} Bxd7 {[%emt 0:00:57]} 16. Bf3 {[%emt 0:00:25]
} Be6 {[%emt 0:01:54]} 17. Qa3 {[%emt 0:00:25]} Rfe8 {[%emt 0:00:37]} 18. Bg5 {
[%emt 0:00:48]} Qd6 {[%emt 0:00:22]} 19. Qa5 {[%emt 0:00:40]} Bd5 {[%emt 0:00:
34]} 20. Bxd5 {[%emt 0:02:05]} cxd5 {[%emt 0:00:09]} 21. Re2 {[%emt 0:00:02]}
e6 {[%emt 0:00:09]} 22. Rae1 {[%emt 0:00:08]} Rec8 {[%emt 0:00:35]} 23. h4 {
[%emt 0:00:36]} h6 {[%emt 0:00:26]} 24. Be3 {[%emt 0:00:17]} h5 {[%emt 0:00:06]
} 25. g3 {[%emt 0:00:42]} Qc7 {[%emt 0:00:32]} 26. Qb5 {[%emt 0:00:39]} Qc6 {
[%emt 0:00:34]} 27. Qb3 {[%emt 0:00:17]} b5 {[%emt 0:00:19]} 28. Qd1 {[%emt 0:
00:53]} a5 {[%emt 0:00:22]} 29. Bd2 {[%emt 0:00:29]} Rab8 {[%emt 0:00:46]} 30.
Re3 {[%emt 0:00:56]} b4 {[%emt 0:00:25]} 31. g4 {[%emt 0:00:56]} hxg4 {[%emt 0:
02:05]} 32. Qxg4 {[%emt 0:00:03]} bxc3 {[%emt 0:00:22]} 33. Bxc3 {[%emt 0:00:
14]} Qa4 {[%emt 0:00:43]} 34. h5 {[%emt 0:00:27]} gxh5 {[%emt 0:00:02]} 35.
Qxh5 {[%emt 0:00:24]} Qc2 {[%emt 0:00:18]} 36. Rg3 {[%emt 0:00:25]} Qh7 {
[%emt 0:00:31]} 37. Qg4 {[%emt 0:00:03]} Kf8 {[%emt 0:00:34]} 38. Kg2 {[%emt 0:
00:25]} Bf6 {[%emt 0:00:10]} 39. Qf3 {[%emt 0:00:46]} Qh4 {[%emt 0:00:41]} 40.
Rg4 {[%emt 0:00:16]} Qh5 {[%emt 0:00:31]} 41. Rg8+ {[%emt 0:00:04]} Ke7 {
[%emt 0:00:02]} 42. Qxh5 {[%emt 0:00:09]} Rxg8+ {[%emt 0:00:01]} 43. Kf1 {
[%emt 0:00:10]} Rg5 {[%emt 0:00:02]} 44. Qf3 {[%emt 0:00:12]} Rbg8 {[%emt 0:00:
02]} 45. Bxa5 {[%emt 0:00:31]} Bxd4 {[%emt 0:00:20]} 46. Bb4+ {[%emt 0:00:16]}
Ke8 {[%emt 0:00:16]} 47. Qd3 {[%emt 0:00:25]} e5 {[%emt 0:00:17]} 48. Qb5+ {
[%emt 0:00:08]} Kd8 {[%emt 0:00:02]} 49. Qxd5+ {[%emt 0:00:19]} Ke8 {[%emt 0:
00:05]} 50. Qc6+ {[%emt 0:00:16]} Kd8 {[%emt 0:00:08]} 51. Qd6+ {[%emt 0:00:03]
} Kc8 {[%emt 0:00:05]} 52. Rc1+ {[%emt 0:00:02]} Kb7 {[%emt 0:00:03]} 53. Rc7+
{[%emt 0:00:03]} Kb8 {[%emt 0:00:07]} 54. Rxf7+ {[%emt 0:00:43]} Ka8 {[%emt 0:
00:01]} 55. Qc6+ {[%emt 0:00:01]} 1-0

[Event "European Rapid Championship 2021"]
[Site "Katowice"]
[Date "2021.12.18"]
[Round "3.20"]
[White "Dylag, Emilia"]
[Black "Danielyan, Vahe"]
[Result "1/2-1/2"]
[ECO "A58"]
[WhiteElo "1776"]
[BlackElo "2198"]
[Annotator "ChessBase"]
[PlyCount "163"]
[EventDate "2021.12.18"]
[EventType "swiss"]
[EventCountry "POL"]
[SourceTitle "playchess.com"]
[Source "ChessBase"]
[SourceQuality "1"]
[TimeControl "900+10"]

1. d4 {[%emt 0:00:02]} Nf6 {[%emt 0:00:05]} 2. c4 {[%emt 0:00:02]} c5 {[%emt 0:
00:25]} 3. d5 {[%emt 0:00:03]} b5 {[%emt 0:00:01]} 4. cxb5 {[%emt 0:00:02]} a6
{[%emt 0:00:01]} 5. bxa6 {[%emt 0:00:02]} g6 {[%emt 0:00:01]} 6. Nc3 {[%emt 0:
00:05]} Bg7 {[%emt 0:00:03]} 7. g3 {[%emt 0:00:04]} O-O {[%emt 0:00:03]} 8. Bg2
{[%emt 0:00:03]} d6 {[%emt 0:00:02]} 9. Nf3 {[%emt 0:00:16]} Nxa6 {[%emt 0:00:
02]} 10. O-O {[%emt 0:00:26]} Bf5 {[%emt 0:00:02]} 11. Nd2 {[%emt 0:00:48]} Nb4
{[%emt 0:00:11]} 12. e4 {[%emt 0:00:27]} Bd7 {[%emt 0:01:10]} 13. Nc4 {[%emt 0:
01:17]} Ng4 {[%emt 0:00:07]} 14. a3 {[%emt 0:00:56]} Na6 {[%emt 0:00:58]} 15.
Bf4 {[%emt 0:03:57]} Rb8 {[%emt 0:00:47]} 16. h3 {[%emt 0:01:40]} Nf6 {[%emt 0:
00:02]} 17. e5 {[%emt 0:00:31]} Nh5 {[%emt 0:00:02]} 18. Bg5 {[%emt 0:01:18]}
dxe5 {[%emt 0:02:29]} 19. d6 {[%emt 0:01:12]} f6 {[%emt 0:00:01]} 20. Be3 {
[%emt 0:01:17]} e6 {[%emt 0:00:33]} 21. Qe2 {[%emt 0:00:25]} f5 {[%emt 0:00:41]
} 22. Bc1 {[%emt 0:01:12]} e4 {[%emt 0:00:24]} 23. Rd1 {[%emt 0:00:09]} Rc8 {
[%emt 0:01:26]} 24. g4 {[%emt 0:00:18]} Nf6 {[%emt 0:00:09]} 25. Ne5 {[%emt 0:
00:27]} Nb8 {[%emt 0:00:15]} 26. Bg5 {[%emt 0:00:11]} Nc6 {[%emt 0:00:27]} 27.
Nxc6 {[%emt 0:00:52]} Rxc6 {[%emt 0:00:14]} 28. f3 {[%emt 0:00:32]} exf3 {
[%emt 0:02:04]} 29. Bxf3 {[%emt 0:00:02]} Rb6 {[%emt 0:00:11]} 30. gxf5 {
[%emt 0:00:25]} gxf5 {[%emt 0:00:04]} 31. a4 {[%emt 0:00:25]} h6 {[%emt 0:00:
34]} 32. Be3 {[%emt 0:00:11]} Ne4 {[%emt 0:01:03]} 33. Bxe4 {[%emt 0:00:37]}
fxe4 {[%emt 0:00:02]} 34. Rf1 {[%emt 0:00:17]} Rf5 {[%emt 0:01:05]} 35. Rxf5 {
[%emt 0:00:14]} exf5 {[%emt 0:00:01]} 36. Qc4+ {[%emt 0:00:01]} Kh7 {[%emt 0:
00:10]} 37. b3 {[%emt 0:00:20]} Qh4 {[%emt 0:00:35]} 38. Bxc5 {[%emt 0:00:11]}
Qg3+ {[%emt 0:00:14]} 39. Kf1 {[%emt 0:00:01]} e3 {[%emt 0:00:23]} 40. Ra2 {
[%emt 0:00:08]} Qxh3+ {[%emt 0:01:10]} 41. Ke1 {[%emt 0:00:01]} Rb7 {[%emt 0:
00:51]} 42. Nd5 {[%emt 0:00:29]} Qh1+ {[%emt 0:00:35]} 43. Ke2 {[%emt 0:00:02]}
Qg2+ {[%emt 0:00:10]} 44. Kxe3 {[%emt 0:00:03]} Qxa2 {[%emt 0:00:19]} 45. Nb6 {
[%emt 0:00:27]} Qg2 {[%emt 0:00:33]} 46. a5 {[%emt 0:00:07]} h5 {[%emt 0:01:25]
} 47. a6 {[%emt 0:00:07]} f4+ {[%emt 0:00:29]} 48. Qxf4 {[%emt 0:00:15]} Qg1+ {
[%emt 0:00:07]} 49. Kd2 {[%emt 0:00:07]} Qxc5 {[%emt 0:00:12]} 50. axb7 {
[%emt 0:00:11]} Qxb6 {[%emt 0:00:15]} 51. Qe4+ {[%emt 0:00:07]} Kh8 {[%emt 0:
00:08]} 52. Qd5 {[%emt 0:00:12]} Qb4+ {[%emt 0:00:10]} 53. Ke2 {[%emt 0:00:13]}
Bg4+ {[%emt 0:00:03]} 54. Kf2 {[%emt 0:00:05]} Qf4+ {[%emt 0:00:03]} 55. Kg2 {
[%emt 0:00:06]} Qb4 {[%emt 0:00:30]} 56. d7 {[%emt 0:00:06]} Bxd7 {[%emt 0:00:
12]} 57. Qxh5+ {[%emt 0:00:16]} Kg8 {[%emt 0:00:08]} 58. Qd5+ {[%emt 0:00:02]}
Kf8 {[%emt 0:00:07]} 59. Qxd7 {[%emt 0:00:18]} Qe4+ {[%emt 0:00:03]} 60. Kf2 {
[%emt 0:00:15]} Bd4+ {[%emt 0:00:03]} 61. Kg3 {[%emt 0:00:08]} Be5+ {[%emt 0:
00:06]} 62. Kf2 {[%emt 0:00:02]} Bd4+ {[%emt 0:00:17]} 63. Kg3 {[%emt 0:00:03]}
Qe3+ {[%emt 0:00:15]} 64. Kg4 {[%emt 0:00:16]} Qe4+ {[%emt 0:00:17]} 65. Kg3 {
[%emt 0:00:01]} Qe3+ {[%emt 0:00:09]} 66. Kg4 {[%emt 0:00:02]} Qg1+ {[%emt 0:
00:06]} 67. Kf5 {[%emt 0:00:20]} Qf2+ {[%emt 0:00:09]} 68. Ke6 {[%emt 0:00:26]}
Qe2+ {[%emt 0:00:20]} 69. Kd5 {[%emt 0:00:07]} Qe5+ {[%emt 0:00:06]} 70. Kc4 {
[%emt 0:00:01]} Qc5+ {[%emt 0:00:04]} 71. Kd3 {[%emt 0:00:01]} Qc3+ {[%emt 0:
00:02]} 72. Ke4 {[%emt 0:00:01]} Qe3+ {[%emt 0:00:04]} 73. Kd5 {[%emt 0:00:04]}
Qe5+ {[%emt 0:00:19]} 74. Kc4 Qc5+ 75. Kd3 Qc3+ 76. Ke4 {[%emt 0:00:03]} Qe3+ {
[%emt 0:00:01]} 77. Kd5 {[%emt 0:00:01]} Qe5+ {[%emt 0:00:50]} 78. Kc4 {
[%emt 0:00:01]} Ba7 {[%emt 0:00:13]} 79. Qc8+ {[%emt 0:00:46]} Ke7 {[%emt 0:00:
07]} 80. b8=Q {[%emt 0:00:41]} Bxb8 {[%emt 0:00:07]} 81. Qc5+ {[%emt 0:00:02]}
Qxc5+ {[%emt 0:00:02]} 82. Kxc5 1/2-1/2

[Event "European Rapid Championship 2021"]
[Site "Katowice"]
[Date "2021.12.18"]
[Round "3.21"]
[White "Cukrowski, Filip"]
[Black "Sowinski, Pawel"]
[Result "1-0"]
[ECO "D78"]
[WhiteElo "2373"]
[BlackElo "2025"]
[Annotator "NA"]
[PlyCount "67"]
[EventDate "2021.12.18"]
[EventType "swiss"]
[EventCountry "POL"]
[SourceTitle "playchess.com"]
[Source "ChessBase"]
[SourceQuality "1"]
[TimeControl "900+10"]

1. Nf3 {[%emt 0:00:01]} Nf6 {[%emt 0:00:02]} 2. g3 {[%emt 0:00:01]} g6 {
[%emt 0:00:02]} 3. Bg2 {[%emt 0:00:01]} Bg7 {[%emt 0:00:01]} 4. d4 {[%emt 0:00:
01]} d5 {[%emt 0:00:04]} 5. c4 {[%emt 0:00:03]} c6 {[%emt 0:00:01]} 6. O-O {
[%emt 0:00:11]} O-O {[%emt 0:00:02]} 7. Nbd2 {[%emt 0:00:14]} e6 {[%emt 0:00:
13]} 8. Qc2 {[%emt 0:00:06]} Nbd7 {[%emt 0:00:05]} 9. Re1 {[%emt 0:00:02]} b6 {
[%emt 0:00:07]} 10. e4 {[%emt 0:01:12]} dxe4 {[%emt 0:00:03]} 11. Nxe4 {
[%emt 0:00:01]} Nxe4 {[%emt 0:00:02]} 12. Qxe4 {[%emt 0:00:02]} Bb7 {[%emt 0:
00:14]} 13. Bg5 {[%emt 0:00:11]} Qc8 {[%emt 0:01:11]} 14. Ne5 {[%emt 0:00:54]}
h6 {[%emt 0:02:02]} 15. Be7 {[%emt 0:09:07]} Re8 {[%emt 0:00:23]} 16. Bd6 {
[%emt 0:00:01]} Nf6 {[%emt 0:02:07]} 17. Qf3 {[%emt 0:00:01]} Qd8 {[%emt 0:00:
39]} 18. c5 {[%emt 0:00:01]} Rc8 {[%emt 0:00:22]} 19. h4 {[%emt 0:00:18]} h5 {
[%emt 0:04:17]} 20. Re4 {[%emt 0:00:03]} Rf8 {[%emt 0:01:36]} 21. Rf4 {[%emt 0:
00:03]} bxc5 {[%emt 0:03:56]} 22. dxc5 {[%emt 0:00:01]} Ng4 {[%emt 0:00:38]}
23. Nxf7 {[%emt 0:03:07]} Qd7 {[%emt 0:00:23]} 24. Bxf8 {[%emt 0:00:04]} Rxf8 {
[%emt 0:00:02]} 25. Nd6 {[%emt 0:00:01]} Rxf4 {[%emt 0:00:04]} 26. Qxf4 {
[%emt 0:00:03]} Be5 {[%emt 0:00:33]} 27. Qg5 {[%emt 0:00:13]} Kg7 {[%emt 0:00:
01]} 28. Be4 {[%emt 0:00:08]} Bxd6 {[%emt 0:00:21]} 29. Qxg6+ Kf8 30. Rd1 {
[%emt 0:00:26]} Qf7 {[%emt 0:00:19]} 31. Qxf7+ {[%emt 0:00:08]} Kxf7 {[%emt 0:
00:02]} 32. Rxd6 {[%emt 0:00:08]} Ne5 {[%emt 0:00:02]} 33. f4 {[%emt 0:00:02]}
Nc4 {[%emt 0:00:01]} 34. Rd7+ {[%emt 0:00:02]} 1-0

[Event "European Rapid Championship 2021"]
[Site "Katowice"]
[Date "2021.12.18"]
[Round "3.21"]
[White "Dzierzak, Radoslaw"]
[Black "Blohberger, Felix"]
[Result "0-1"]
[ECO "B91"]
[WhiteElo "2075"]
[BlackElo "2409"]
[Annotator "ChessBase"]
[PlyCount "124"]
[EventDate "2021.12.18"]
[EventType "swiss"]
[EventCountry "POL"]
[SourceTitle "playchess.com"]
[Source "ChessBase"]
[SourceQuality "1"]
[TimeControl "900+10"]

1. e4 {[%emt 0:00:02]} c5 {[%emt 0:00:01]} 2. Nf3 {[%emt 0:00:02]} d6 {[%emt 0:
00:01]} 3. d4 {[%emt 0:00:01]} cxd4 {[%emt 0:00:02]} 4. Nxd4 {[%emt 0:00:02]}
Nf6 {[%emt 0:00:02]} 5. Nc3 {[%emt 0:00:01]} a6 {[%emt 0:00:01]} 6. g3 {
[%emt 0:00:02]} Bd7 {[%emt 0:00:04]} 7. Bg2 {[%emt 0:00:07]} Nc6 {[%emt 0:00:
02]} 8. O-O {[%emt 0:00:35]} e6 {[%emt 0:00:01]} 9. Nb3 {[%emt 0:01:15]} Be7 {
[%emt 0:00:06]} 10. a4 {[%emt 0:00:01]} Na5 {[%emt 0:00:19]} 11. Nxa5 {[%emt 0:
00:05]} Qxa5 {[%emt 0:00:02]} 12. Qd4 {[%emt 0:01:06]} O-O {[%emt 0:00:30]} 13.
Bd2 {[%emt 0:00:31]} Qc7 {[%emt 0:00:19]} 14. a5 {[%emt 0:00:51]} Rac8 {
[%emt 0:00:16]} 15. Rfd1 {[%emt 0:00:14]} Bc6 {[%emt 0:04:13]} 16. h3 {[%emt 0:
01:42]} Rfd8 {[%emt 0:00:24]} 17. Be3 {[%emt 0:02:35]} d5 {[%emt 0:01:08]} 18.
Bf4 {[%emt 0:00:10]} Qd7 {[%emt 0:00:24]} 19. e5 {[%emt 0:00:40]} Ne8 {[%emt 0:
00:03]} 20. Be3 {[%emt 0:00:19]} Nc7 {[%emt 0:00:29]} 21. Qg4 {[%emt 0:00:37]}
f5 {[%emt 0:02:12]} 22. exf6 {[%emt 0:01:37]} Bxf6 {[%emt 0:00:02]} 23. Ne4 {
[%emt 0:00:41]} Bxb2 {[%emt 0:01:49]} 24. Nc5 {[%emt 0:01:07]} Qe7 {[%emt 0:02:
42]} 25. Rab1 {[%emt 0:00:14]} Bf6 {[%emt 0:00:04]} 26. Nxb7 {[%emt 0:00:24]}
Bxb7 {[%emt 0:01:11]} 27. Rxb7 {[%emt 0:00:02]} Rb8 {[%emt 0:00:17]} 28. Rdb1 {
[%emt 0:00:50]} Rxb7 {[%emt 0:00:47]} 29. Rxb7 {[%emt 0:00:02]} Qd6 {[%emt 0:
01:32]} 30. Bb6 {[%emt 0:00:58]} h5 {[%emt 0:00:35]} 31. Qxh5 {[%emt 0:00:18]}
Rc8 {[%emt 0:00:02]} 32. Rxc7 {[%emt 0:00:21]} Rxc7 {[%emt 0:00:04]} 33. Bxc7 {
[%emt 0:00:03]} Qxc7 {[%emt 0:00:02]} 34. Qe8+ {[%emt 0:00:06]} Kh7 {[%emt 0:
00:01]} 35. Qh5+ {[%emt 0:00:06]} Kg8 {[%emt 0:00:01]} 36. Qe8+ {[%emt 0:00:01]
} Kh7 {[%emt 0:00:01]} 37. Qxe6 {[%emt 0:00:13]} Qxa5 {[%emt 0:00:22]} 38. Bxd5
{[%emt 0:00:42]} Qa1+ {[%emt 0:00:01]} 39. Kg2 {[%emt 0:00:01]} Qe5 {[%emt 0:
00:02]} 40. Qg8+ {[%emt 0:00:11]} Kh6 {[%emt 0:00:20]} 41. Qh8+ {[%emt 0:01:28]
} Kg6 {[%emt 0:00:05]} 42. Bc6 {[%emt 0:00:19]} a5 {[%emt 0:00:43]} 43. Be8+ {
[%emt 0:01:17]} Kf5 {[%emt 0:00:02]} 44. Qh5+ {[%emt 0:00:04]} Ke6 {[%emt 0:00:
16]} 45. Qf7+ {[%emt 0:00:04]} Kd6 {[%emt 0:00:00]} 46. Qd7+ {[%emt 0:00:01]}
Kc5 {[%emt 0:00:03]} 47. Qb5+ {[%emt 0:00:03]} Kd4 {[%emt 0:00:09]} 48. Qd3+ {
[%emt 0:00:11]} Kc5 {[%emt 0:00:01]} 49. Qb5+ {[%emt 0:00:08]} Kd4 {[%emt 0:00:
02]} 50. Qa4+ {[%emt 0:00:03]} Kc3 {[%emt 0:00:14]} 51. Bc6 {[%emt 0:00:21]}
Qc5 {[%emt 0:01:01]} 52. Be4 {[%emt 0:00:22]} Qb4 {[%emt 0:00:24]} 53. Qa1+ {
[%emt 0:00:10]} Kd2 {[%emt 0:00:12]} 54. Qa2 {[%emt 0:00:32]} Qxe4+ {[%emt 0:
00:02]} 55. Kh2 {[%emt 0:00:01]} Bc3 {[%emt 0:00:11]} 56. Qf7 {[%emt 0:00:18]}
Kxc2 {[%emt 0:00:16]} 57. Qa2+ {[%emt 0:00:01]} Kd1 {[%emt 0:00:09]} 58. Qb3+ {
[%emt 0:00:01]} Qc2 {[%emt 0:00:01]} 59. Qf7 {[%emt 0:00:01]} a4 {[%emt 0:00:
06]} 60. Kg1 {[%emt 0:00:10]} Kc1 {[%emt 0:00:07]} 61. Qf4+ {[%emt 0:00:10]}
Kb2 {[%emt 0:00:04]} 62. Qb8+ {[%emt 0:00:02]} Qb3 {[%emt 0:00:01]} 0-1

[Event "European Rapid Championship 2021"]
[Site "Katowice"]
[Date "2021.12.18"]
[Round "3.22"]
[White "Diermair, Andreas"]
[Black "Klepek, Witold"]
[Result "1-0"]
[ECO "D31"]
[WhiteElo "2408"]
[BlackElo "2046"]
[Annotator "NA"]
[PlyCount "61"]
[EventDate "2021.12.18"]
[EventType "swiss"]
[EventCountry "POL"]
[SourceTitle "playchess.com"]
[Source "ChessBase"]
[SourceQuality "1"]
[TimeControl "900+10"]

1. d4 {[%emt 0:00:03]} d5 {[%emt 0:00:01]} 2. c4 {[%emt 0:00:01]} e6 {[%emt 0:
00:01]} 3. Nc3 {[%emt 0:00:01]} Bb4 {[%emt 0:00:01]} 4. a3 {[%emt 0:00:06]}
Bxc3+ {[%emt 0:00:02]} 5. bxc3 {[%emt 0:00:01]} Nf6 {[%emt 0:00:02]} 6. e3 {
[%emt 0:00:03]} O-O {[%emt 0:00:08]} 7. cxd5 {[%emt 0:00:04]} exd5 {[%emt 0:00:
07]} 8. Bd3 {[%emt 0:00:02]} b6 {[%emt 0:00:25]} 9. Ne2 {[%emt 0:00:08]} Bb7 {
[%emt 0:00:09]} 10. O-O {[%emt 0:00:12]} Nbd7 {[%emt 0:00:09]} 11. f3 {[%emt 0:
00:15]} Re8 {[%emt 0:00:58]} 12. Ng3 {[%emt 0:00:15]} c5 {[%emt 0:02:55]} 13.
Ra2 {[%emt 0:00:14]} Rc8 {[%emt 0:00:23]} 14. Re2 {[%emt 0:00:31]} Nf8 {
[%emt 0:00:37]} 15. Bb2 {[%emt 0:03:46]} Ne6 {[%emt 0:00:18]} 16. Qd2 {[%emt 0:
00:10]} Qc7 {[%emt 0:00:44]} 17. Ree1 {[%emt 0:00:45]} a6 {[%emt 0:01:30]} 18.
e4 {[%emt 0:01:40]} Qf4 {[%emt 0:01:44]} 19. Qd1 {[%emt 0:00:20]} Qc7 {[%emt 0:
01:23]} 20. e5 {[%emt 0:00:25]} Nd7 {[%emt 0:00:01]} 21. f4 {[%emt 0:00:07]} b5
{[%emt 0:00:37]} 22. f5 {[%emt 0:00:38]} Nef8 {[%emt 0:00:04]} 23. Qg4 {
[%emt 0:00:20]} Qb6 {[%emt 0:00:23]} 24. Kh1 {[%emt 0:00:22]} b4 {[%emt 0:00:
26]} 25. Nh5 {[%emt 0:01:09]} g6 {[%emt 0:00:02]} 26. Qg5 {[%emt 0:00:59]} bxc3
{[%emt 0:01:03]} 27. Bxc3 {[%emt 0:01:05]} cxd4 {[%emt 0:00:30]} 28. Bb4 {
[%emt 0:01:19]} Rc6 {[%emt 0:01:45]} 29. Bxf8 {[%emt 0:00:53]} Nxf8 {[%emt 0:
00:11]} 30. Qh6 {[%emt 0:00:51]} gxh5 {[%emt 0:00:11]} 31. f6 {[%emt 0:00:02]}
1-0

[Event "European Rapid Championship 2021"]
[Site "Katowice"]
[Date "2021.12.18"]
[Round "3.22"]
[White "Mulet, Piotr"]
[Black "Lascar, Radoslawa"]
[Result "1-0"]
[ECO "B22"]
[WhiteElo "2175"]
[BlackElo "1695"]
[Annotator "NA"]
[PlyCount "83"]
[EventDate "2021.12.18"]
[EventType "swiss"]
[EventCountry "POL"]
[SourceTitle "playchess.com"]
[Source "ChessBase"]
[SourceQuality "1"]
[TimeControl "900+10"]

1. e4 {[%emt 0:00:03]} c5 {[%emt 0:00:02]} 2. c3 {[%emt 0:00:02]} d5 {[%emt 0:
00:09]} 3. exd5 {[%emt 0:00:01]} Qxd5 {[%emt 0:00:02]} 4. d4 {[%emt 0:00:03]}
Nc6 {[%emt 0:00:11]} 5. Nf3 {[%emt 0:00:02]} Bg4 {[%emt 0:00:07]} 6. Be2 {
[%emt 0:00:01]} cxd4 {[%emt 0:00:13]} 7. cxd4 {[%emt 0:00:04]} e6 {[%emt 0:00:
11]} 8. h3 {[%emt 0:00:02]} Bh5 {[%emt 0:00:02]} 9. Nc3 {[%emt 0:00:05]} Qa5 {
[%emt 0:00:21]} 10. d5 {[%emt 0:00:14]} exd5 {[%emt 0:00:51]} 11. Nd4 {[%emt 0:
00:09]} Bg6 {[%emt 0:01:47]} 12. O-O {[%emt 0:00:24]} Nf6 {[%emt 0:01:37]} 13.
Bb5 {[%emt 0:00:19]} Rc8 {[%emt 0:02:35]} 14. Re1+ {[%emt 0:00:02]} Be7 {
[%emt 0:00:08]} 15. Bg5 {[%emt 0:00:08]} Kf8 {[%emt 0:02:09]} 16. Qe2 {[%emt 0:
04:55]} Qd8 {[%emt 0:02:29]} 17. Rad1 {[%emt 0:00:22]} h6 {[%emt 0:01:44]} 18.
Bh4 {[%emt 0:00:19]} Nxd4 {[%emt 0:03:09]} 19. Rxd4 {[%emt 0:00:03]} Rc5 {
[%emt 0:00:06]} 20. Bxf6 {[%emt 0:01:05]} gxf6 {[%emt 0:00:02]} 21. Ba4 {
[%emt 0:00:02]} a6 22. Bb3 {[%emt 0:00:03]} Bd6 {[%emt 0:00:41]} 23. Bxd5 {
[%emt 0:00:34]} Be5 {[%emt 0:00:09]} 24. Bxf7 {[%emt 0:01:16]} Qxd4 {[%emt 0:
00:10]} 25. Bxg6 {[%emt 0:00:02]} Rg8 {[%emt 0:00:09]} 26. Be4 {[%emt 0:00:30]}
Qd7 {[%emt 0:00:07]} 27. Qf3 {[%emt 0:00:48]} b5 {[%emt 0:00:14]} 28. Rd1 {
[%emt 0:00:19]} Qc8 {[%emt 0:00:13]} 29. Qe3 {[%emt 0:00:28]} Bxc3 {[%emt 0:00:
08]} 30. bxc3 {[%emt 0:00:06]} Rxc3 {[%emt 0:00:10]} 31. Qxh6+ {[%emt 0:00:01]}
Rg7 {[%emt 0:00:07]} 32. Qxf6+ {[%emt 0:00:08]} Rf7 {[%emt 0:00:04]} 33. Qh6+ {
[%emt 0:00:09]} Rg7 {[%emt 0:00:07]} 34. g3 {[%emt 0:00:42]} Qe8 {[%emt 0:00:
20]} 35. Qf6+ {[%emt 0:00:29]} Rf7 {[%emt 0:00:08]} 36. Qh8+ {[%emt 0:00:02]}
Ke7 {[%emt 0:00:03]} 37. Qxc3 {[%emt 0:00:03]} Qb8 {[%emt 0:00:21]} 38. Qc5+ {
[%emt 0:00:08]} Kf6 {[%emt 0:00:12]} 39. Rd6+ {[%emt 0:00:24]} Kg7 {[%emt 0:00:
08]} 40. Rg6+ {[%emt 0:00:06]} Kh8 {[%emt 0:00:02]} 41. Qd4+ {[%emt 0:00:16]}
Kh7 {[%emt 0:00:09]} 42. Rb6+ {[%emt 0:00:16]} 1-0

[Event "European Rapid Championship 2021"]
[Site "Katowice"]
[Date "2021.12.18"]
[Round "3.23"]
[White "Mikhaletz, Lubomir"]
[Black "Owoc, Jakub"]
[Result "1-0"]
[ECO "B12"]
[WhiteElo "2166"]
[BlackElo "1528"]
[Annotator "NA"]
[PlyCount "75"]
[EventDate "2021.12.18"]
[EventType "swiss"]
[EventCountry "POL"]
[SourceTitle "playchess.com"]
[Source "ChessBase"]
[SourceQuality "1"]
[TimeControl "900+10"]

1. e4 {[%emt 0:00:00]} c6 {[%emt 0:00:01]} 2. d4 {[%emt 0:00:02]} d5 {[%emt 0:
00:01]} 3. e5 {[%emt 0:00:01]} c5 {[%emt 0:00:03]} 4. c4 {[%emt 0:00:10]} cxd4
{[%emt 0:00:17]} 5. Qxd4 {[%emt 0:00:03]} e6 {[%emt 0:00:18]} 6. cxd5 {[%emt 0:
00:08]} Nc6 {[%emt 0:00:08]} 7. Bb5 {[%emt 0:00:15]} Qxd5 {[%emt 0:00:50]} 8.
Qxd5 {[%emt 0:00:29]} exd5 {[%emt 0:00:02]} 9. Nc3 {[%emt 0:00:16]} Be6 {
[%emt 0:00:02]} 10. Nf3 {[%emt 0:00:17]} Bb4 {[%emt 0:00:04]} 11. Bd2 {[%emt 0:
00:53]} a6 {[%emt 0:00:10]} 12. Ba4 {[%emt 0:00:55]} Nge7 {[%emt 0:00:32]} 13.
O-O {[%emt 0:02:38]} O-O {[%emt 0:00:18]} 14. h3 {[%emt 0:00:31]} h6 {[%emt 0:
00:40]} 15. Rfe1 {[%emt 0:00:22]} Rfd8 {[%emt 0:00:35]} 16. Bxc6 {[%emt 0:01:
01]} bxc6 {[%emt 0:00:14]} 17. Na4 {[%emt 0:00:21]} Bxd2 {[%emt 0:02:04]} 18.
Nxd2 {[%emt 0:00:02]} d4 {[%emt 0:00:01]} 19. Nc5 {[%emt 0:02:19]} Rd5 {
[%emt 0:00:04]} 20. Rac1 {[%emt 0:01:03]} Ng6 {[%emt 0:00:18]} 21. Nxe6 {
[%emt 0:00:21]} fxe6 {[%emt 0:00:02]} 22. Rxc6 {[%emt 0:00:06]} Nxe5 {[%emt 0:
00:38]} 23. Rxe6 {[%emt 0:00:13]} Nd3 {[%emt 0:00:01]} 24. Re8+ {[%emt 0:01:23]
} Rxe8 {[%emt 0:00:07]} 25. Rxe8+ {[%emt 0:00:02]} Kf7 {[%emt 0:00:02]} 26. Rb8
{[%emt 0:00:07]} Re5 {[%emt 0:00:43]} 27. Rb7+ {[%emt 0:01:44]} Kg8 {[%emt 0:
00:02]} 28. Rb8+ {[%emt 0:00:44]} Kf7 {[%emt 0:00:01]} 29. Nf3 {[%emt 0:00:11]}
Re2 {[%emt 0:02:44]} 30. Rb3 {[%emt 0:00:51]} Nxb2 {[%emt 0:01:34]} 31. Nxd4 {
[%emt 0:00:02]} Rd2 {[%emt 0:00:26]} 32. Rb7+ {[%emt 0:00:02]} Kg8 {[%emt 0:00:
02]} 33. Nf5 {[%emt 0:00:33]} Nd3 {[%emt 0:00:47]} 34. Rxg7+ {[%emt 0:01:12]}
Kf8 {[%emt 0:00:02]} 35. Rg6 {[%emt 0:00:11]} Rxa2 {[%emt 0:00:02]} 36. Rxh6 {
[%emt 0:00:12]} Nxf2 {[%emt 0:00:04]} 37. Rf6+ {[%emt 0:00:05]} Ke8 {[%emt 0:
01:27]} 38. Ng7+ {[%emt 0:00:11]} 1-0